bitfinex/quotes_ETHUSD_20251130
["timestamp","ask_amount","ask_price","bid_price","bid_amount"]
[1764519731649,0.94,3047.5,3047.4,0.001]
[1764519732217,0.184,3047.9,3047.4,0.001]
[1764519732413,0.48945328,3047.8,3047.4,0.001]
[1764519733007,0.16128495,3050.2,3047.7,0.3237]
[1764519733138,0.002,3048.9,3048.1,0.332]
[1764519733448,0.002,3048.9,3047.9,0.405504]
[1764519733449,0.002,3048.9,3048.2,0.6259]
[1764519733666,0.002,3048.9,3048.8,0.3237]
[1764519733813,0.002,3048.9,3048.8,0.21]
[1764519734316,0.002,3048.9,3048.8,3.489979]
[1764519735219,0.002,3048.9,3048.8,3.813679]
[1764519735531,0.6663,3048.9,3048.8,3.489979]
[1764519736456,0.002,3048.9,3048.8,3.489979]
[1764519736955,0.4848,3048.9,3048.8,3.489979]
[1764519739241,0.6663,3048.9,3048.8,3.279979]
[1764519739417,1.1235,3048.9,3048.8,3.279979]
[1764519739968,1.1235,3048.9,3048.5,0.21]
[1764519740258,0.4828,3048.7,3048.5,0.21]
[1764519740445,0.4828,3048.6,3048.5,0.21]
[1764519741950,0.4828,3048.6,3048.5,3.49030178]
[1764519742972,0.4848,3048.6,3048.5,3.49030178]
[1764519743272,0.002,3048.6,3048.5,3.49030178]
[1764519745574,0.4732,3048.6,3048.5,3.49030178]
[1764519745748,0.9321,3048.6,3048.5,3.49030178]
[1764519746646,0.9321,3048.6,3048.1,0.0922]
[1764519746647,6.74230178,3048.5,3046.8,1.74853409]
[1764519746874,0.4712,3047.5,3047.4,3.28248585]
[1764519747077,0.0875,3047.9,3047.4,3.28248585]
[1764519747282,0.4589,3047.8,3047.4,3.28248585]
[1764519747461,0.5464,3047.9,3047.5,0.03281378]
[1764519747664,0.4589,3047.8,3047.5,0.03281378]
[1764519748252,0.4589,3047.8,3047.6,3.2812705]
[1764519748459,0.1919,3048.1,3047.6,3.2812705]
[1764519748859,0.4589,3048.0,3047.6,3.2812705]
[1764519749162,0.4712,3047.7,3047.6,3.2812705]
[1764519749667,0.4589,3049.1,3047.9,0.3237]
[1764519749871,0.002,3048.9,3048.5,0.4159]
[1764519750067,0.002,3048.9,3048.5,0.6259]
[1764519750463,0.002,3048.9,3048.5,3.90620178]
[1764519751758,0.1939,3048.9,3048.5,3.90620178]
[1764519753075,0.1939,3048.9,3048.5,3.49030178]
[1764519753273,0.002,3048.9,3048.5,3.81400178]
[1764519753472,0.002,3048.9,3048.5,3.49030178]
[1764519753473,0.1939,3048.9,3048.5,3.49030178]
[1764519753695,0.1939,3048.9,3048.5,3.81400178]
[1764519754996,0.002,3048.9,3048.5,3.81400178]
[1764519757092,0.002,3048.9,3048.5,4.46970178]
[1764519759233,0.002,3048.9,3048.5,3.60400178]
[1764519759384,0.002,3048.9,3048.5,4.50150479]
[1764519761216,0.002,3048.9,3048.5,5.2270989]
[1764519763416,0.002,3048.9,3048.5,5.6326029]
[1764519764440,0.002,3048.9,3048.5,5.3089029]
[1764519765518,0.002,3048.9,3048.5,5.6326029]
[1764519766041,0.002,3048.9,3048.5,5.3006029]
[1764519766420,0.002,3048.9,3048.5,5.6326029]
[1764519768406,0.002,3048.9,3048.5,5.3089029]
[1764519768614,0.002,3048.9,3048.5,5.27609989]
[1764519769011,0.002,3048.9,3048.5,5.59979989]
[1764519769739,0.002,3048.9,3048.5,5.6326029]
[1764519769938,0.002,3048.9,3048.5,5.59979989]
[1764519770146,0.002,3048.9,3048.5,5.06709989]
[1764519770310,0.002,3048.9,3048.5,5.6326029]
[1764519771022,0.002,3048.9,3048.5,5.3089029]
[1764519771228,0.002,3048.9,3048.5,4.94409989]
[1764519771525,0.62018495,3050.2,3049.2,9.83864619]
[1764519771837,0.16128495,3050.2,3049.3,1.34009811]
[1764519772037,0.4589,3050.1,3049.4,0.03279333]
[1764519772215,0.4589,3050.1,3049.4,0.24179333]
[1764519772419,0.6631,3049.5,3049.4,0.24179333]
[1764519772645,0.4589,3050.1,3049.4,0.24179333]
[1764519772820,0.1922,3049.9,3049.4,0.24179333]
[1764519773452,0.4781,3049.8,3049.4,0.209]
[1764519773745,0.4781,3049.8,3049.6,3.27911857]
[1764519774116,0.4993,3049.7,3049.6,3.27911857]
[1764519774320,0.4993,3049.7,3049.5,3.31200726]
[1764519774556,0.9563,3049.6,3049.5,3.279215]
[1764519774851,0.9563,3049.6,3049.2,3.31232091]
[1764519775057,0.4991,3049.4,3049.1,3.48864657]
[1764519775455,0.4784,3049.2,3049.1,3.48864657]
[1764519775836,0.9565,3049.2,3049.1,3.48864657]
[1764519778852,0.9565,3049.2,3049.1,3.27964657]
[1764519780263,0.9565,3049.2,3048.9,6.55964198]
[1764519780459,0.4989,3049.0,3048.9,3.27977056]
[1764519781363,0.002,3049.2,3048.9,6.55964198]
[1764519781528,0.4801,3049.2,3049.0,0.03279763]
[1764519782062,0.4993,3049.1,3049.0,0.03279763]
[1764519782261,0.4993,3049.1,3049.0,3.31256148]
[1764519782464,0.9774,3049.1,3049.0,3.27976385]
[1764519782664,0.9774,3049.1,3048.9,3.2797958]
[1764519782866,0.9563,3049.0,3048.6,3.28019418]
[1764519783042,0.4781,3049.0,3048.6,6.56038836]
[1764519783242,0.6915,3048.7,3048.6,3.28019418]
[1764519783738,1.1696,3048.7,3048.6,3.28019418]
[1764519784559,0.002,3049.2,3048.6,10.16228254]
[1764519784862,0.4781,3049.1,3048.6,9.84058254]
[1764519785065,0.4781,3049.1,3048.7,0.03280086]
[1764519785265,0.4781,3049.1,3048.8,0.209]
[1764519785445,0.4781,3049.1,3048.9,0.03279871]
[1764519785652,0.4781,3049.1,3048.8,0.209]
[1764519785866,0.4993,3048.9,3048.8,0.209]
[1764519786065,0.6915,3048.9,3048.8,0.209]
[1764519786253,0.6915,3048.9,3048.8,3.488979]
[1764519786678,0.002,3049.2,3048.8,7.090658]
[1764519786889,0.002,3049.2,3048.9,0.03279871]
[1764519787269,0.4993,3049.0,3048.9,0.03279871]
[1764519788402,0.4993,3049.0,3048.9,3.31267013]
[1764519789399,0.9774,3049.0,3048.9,3.27987142]
[1764519789948,0.9774,3049.0,3048.6,3.28016422]
[1764519790148,0.6915,3048.7,3048.6,3.28016422]
[1764519790354,0.6915,3048.7,3048.5,0.001]
[1764519790652,0.956,3048.6,3048.5,0.001]
[1764519794199,1.3988186,3048.6,3048.5,0.001]
[1764519794398,0.956,3048.6,3048.5,0.001]
[1764519795093,4.23619418,3048.6,3048.5,0.001]
[1764519795516,4.57187463,3048.6,3048.5,0.001]
[1764519795687,5.29746874,3048.6,3048.5,0.001]
[1764519796719,0.33568045,3048.4,3048.1,0.001]
[1764519796942,0.83478045,3048.2,3048.1,0.001]
[1764519797299,1.31288045,3048.2,3048.1,0.001]
[1764519798300,0.9772,3048.2,3048.1,0.001]
[1764519799021,4.25782463,3048.2,3048.1,0.001]
[1764519799406,1.75192401,3048.2,3048.1,0.001]
[1764519799601,0.9772,3048.2,3048.1,0.001]
[1764519804153,0.4991,3048.2,3048.1,0.001]
[1764519804650,0.9725,3048.2,3048.1,0.001]
[1764519805371,0.4991,3048.2,3048.1,0.001]
[1764519805574,0.9725,3048.2,3048.1,0.001]
[1764519808992,4.79780508,3048.2,3048.1,0.001]
[1764519809154,7.10160868,3048.2,3048.1,0.001]
[1764519809480,1.13109811,3048.1,3048.0,0.001]
[1764519809683,0.33568045,3047.9,3047.8,0.001]
[1764519809882,0.86308045,3047.9,3047.8,0.001]
[1764519810082,1.43648045,3047.9,3047.8,0.001]
[1764519810288,2.72433642,3047.9,3047.8,0.001]
[1764519810469,6.10528395,3047.9,3047.8,0.001]
[1764519812291,0.33568045,3047.7,3047.1,0.001]
[1764519812588,3.73997817,3047.5,3047.1,0.001]
[1764519812758,5.52427467,3047.5,3047.1,0.001]
[1764519812957,5.99767467,3047.5,3047.1,0.001]
[1764519813387,6.40317867,3047.5,3047.1,0.001]
[1764519813586,10.82643533,3047.5,3047.1,0.001]
[1764519813785,10.92643533,3047.5,3047.1,0.001]
[1764519814960,0.33568045,3046.8,3046.7,0.001]
[1764519815194,0.98498045,3046.8,3046.7,0.001]
[1764519815488,1.66738045,3046.8,3046.7,0.001]
[1764519815692,0.6493,3046.8,3046.7,0.001]
[1764519816107,0.8583,3046.8,3046.7,0.001]
[1764519816307,0.6824,3047.0,3046.7,0.001]
[1764519816479,0.4586,3046.8,3046.7,0.001]
[1764519816877,1.44685243,3046.8,3046.7,0.001]
[1764519817077,4.54981252,3046.8,3046.7,0.001]
[1764519817301,4.21413207,3046.8,3046.7,0.001]
[1764519817700,4.42313207,3046.8,3046.7,0.001]
[1764519817900,4.75881252,3046.8,3046.7,0.001]
[1764519818213,4.42313207,3046.8,3046.7,0.001]
[1764519818415,5.52931858,3046.8,3046.7,0.001]
[1764519819912,2.03818651,3046.8,3046.7,0.001]
[1764519820111,4.75881252,3046.8,3046.7,0.001]
[1764519821518,1.26768045,3046.8,3046.7,0.001]
[1764519821692,0.6676,3046.8,3046.7,0.001]
[1764519822291,3.74073207,3046.8,3046.7,0.001]
[1764519822622,4.75881252,3046.8,3046.7,0.001]
[1764519822822,5.56289793,3046.8,3046.7,0.001]
[1764519825414,5.35389793,3046.8,3046.7,0.001]
[1764519825620,5.56289793,3046.8,3046.7,0.001]
[1764519830014,6.28849204,3046.8,3046.7,0.001]
[1764519833645,5.95281159,3046.8,3046.7,0.001]
[1764519834165,6.28849204,3046.8,3046.7,0.001]
[1764519834372,9.69623469,3046.8,3046.7,0.001]
[1764519839375,6.28849204,3046.8,3046.7,0.001]
[1764519839560,9.69623469,3046.8,3046.7,0.001]
[1764519841673,5.35649204,3046.8,3046.7,0.001]
[1764519841858,0.93459411,3046.8,3046.7,0.3227]
[1764519842256,0.93459411,3046.8,3046.7,0.001]
[1764519842453,0.72559411,3046.8,3046.7,0.3227]
[1764519844977,0.002,3047.0,3046.7,7.2088796]
[1764519845180,0.002,3047.0,3046.9,0.3217]
[1764519845547,0.002,3047.0,3046.9,0.6434]
[1764519847587,0.002,3047.0,3046.9,3.92542435]
[1764519848271,0.002,3047.0,3046.9,0.6434]
[1764519848462,0.002,3047.0,3046.9,0.3217]
[1764519850275,0.4696,3047.0,3046.7,0.001]
[1764519850469,0.9497,3047.0,3046.7,0.001]
[1764519850674,0.4696,3047.0,3046.7,0.001]
[1764519851484,0.002,3047.0,3046.7,0.001]
[1764519852082,0.002,3047.0,3046.9,0.3217]
[1764519852774,0.002,3047.0,3046.9,0.6434]
[1764519853169,0.002,3047.0,3046.9,0.3217]
[1764519854085,0.002,3047.0,3046.9,3.92542435]
[1764519854992,0.002,3047.0,3046.9,3.92642435]
[1764519855299,0.002,3047.0,3046.9,0.3227]
[1764519869542,0.002,3047.0,3046.9,3.60472435]
[1764519870353,0.002,3047.0,3046.9,0.3227]
[1764519871955,0.4924,3047.0,3046.9,0.001]
[1764519873353,0.9714,3047.0,3046.9,0.001]
[1764519873521,4.75869649,3047.0,3046.9,0.001]
[1764519873724,5.4842906,3047.0,3046.9,0.001]
[1764519880281,5.4842906,3047.0,3046.2,0.001]
[1764519880282,0.72559411,3046.9,3046.1,6.67024843]
[1764519880485,0.6994,3046.8,3046.1,6.67024843]
[1764519880660,4.4605573,3046.8,3046.1,6.67024843]
[1764519880857,0.51861514,3046.7,3046.1,6.67024843]
[1764519881095,0.51861514,3046.7,3046.1,3.38736212]
[1764519881295,0.99761514,3046.7,3046.1,3.38736212]
[1764519883518,0.99761514,3046.7,3046.1,6.67024843]
[1764519883819,0.99761514,3046.7,3046.2,0.03282778]
[1764519884118,0.44887724,3046.6,3046.1,6.67024843]
[1764519884481,0.44887724,3046.6,3046.1,6.95724843]
[1764519885238,0.44887724,3046.6,3046.3,3.28267078]
[1764519885381,0.44887724,3046.6,3046.2,3.31555995]
[1764519885583,0.44887724,3046.6,3046.2,3.28273217]
[1764519885881,0.92787724,3046.6,3046.2,3.28273217]
[1764519890104,0.44887724,3046.6,3046.2,3.28273217]
[1764519890427,0.4904,3046.3,3046.0,0.001]
[1764519890923,0.4904,3046.3,3046.0,3.28397193]
[1764519891172,0.208,3046.5,3046.0,3.28397193]
[1764519891364,0.44887724,3046.6,3046.5,0.287]
[1764519891658,0.208,3046.7,3046.5,0.287]
[1764519891832,3.49024446,3046.7,3046.1,0.42532886]
[1764519892155,4.30492491,3046.7,3046.1,0.13832886]
[1764519892324,0.479,3046.6,3046.1,0.1055]
[1764519892518,0.479,3046.6,3046.1,0.001]
[1764519892519,0.4622,3046.2,3046.1,0.001]
[1764519892719,0.479,3046.6,3046.1,3.28387951]
[1764519892925,0.39692445,3046.5,3046.1,3.67537951]
[1764519893934,0.84982445,3046.5,3046.1,0.001]
[1764519894255,0.4622,3046.2,3046.1,0.001]
[1764519895257,0.4529,3046.4,3046.1,0.001]
[1764519895437,0.4622,3046.2,3046.1,0.001]
[1764519895951,0.9151,3046.2,3046.1,0.001]
[1764519896142,1.33486675,3046.2,3046.1,0.001]
[1764519896627,3.9443262,3046.6,3046.1,0.288]
[1764519896824,3.2824262,3046.6,3046.1,0.288]
[1764519897050,0.6609,3046.5,3046.1,0.288]
[1764519897363,0.72559411,3046.6,3046.2,0.1045]
[1764519897553,0.93359411,3046.6,3046.2,0.1045]
[1764519897737,0.42158437,3046.5,3046.2,0.1045]
[1764519898964,0.42158437,3046.5,3046.4,0.287]
[1764519899151,0.17169941,3047.0,3046.4,0.287]
[1764519899467,0.208,3046.9,3046.5,0.287]
[1764519899868,0.6609,3046.9,3046.5,0.287]
[1764519900393,0.002,3047.0,3046.8,0.287]
[1764519900537,0.002,3047.0,3046.9,0.574]
[1764519901068,0.002,3047.0,3046.9,0.287]
[1764519902552,0.002,3047.0,3046.9,3.85602435]
[1764519905381,0.002,3047.0,3046.9,3.85602435]
[1764519905579,0.002,3047.0,3046.9,4.78961846]
[1764519907004,0.002,3047.0,3046.9,5.19512246]
[1764519912102,0.002,3047.0,3046.9,5.52712246]
[1764519912295,0.002,3047.0,3046.9,5.5599427]
[1764519912493,0.002,3047.0,3046.9,12.85354428]
[1764519912790,0.002,3047.0,3046.9,12.82072404]
[1764519914225,0.002,3047.0,3046.9,12.32572404]
[1764519914403,0.002,3047.0,3046.9,12.48872404]
[1764519916830,0.002,3047.0,3046.9,12.08322004]
[1764519917406,0.002,3047.0,3046.9,8.39261846]
[1764519917815,0.002,3047.0,3046.9,8.18461846]
[1764519918013,0.002,3047.0,3046.9,8.39261846]
[1764519918629,0.002,3047.0,3046.9,4.50261846]
[1764519920423,0.002,3047.0,3046.9,4.5354387]
[1764519923238,0.002,3047.0,3046.9,4.8224387]
[1764519923613,0.002,3047.0,3046.9,3.80984459]
[1764519923818,0.002,3047.0,3046.9,3.77702435]
[1764519924015,0.002,3047.0,3046.9,3.49002435]
[1764519924215,0.002,3047.0,3046.9,3.52284459]
[1764519924422,0.002,3047.0,3046.9,3.80984459]
[1764519924624,0.002,3047.0,3046.9,4.09684459]
[1764519924850,0.002,3047.0,3046.9,3.80984459]
[1764519927220,0.002,3047.0,3046.9,4.09684459]
[1764519930538,0.002,3047.0,3046.9,8.63154428]
[1764519930772,0.002,3047.0,3046.9,8.59872404]
[1764519932268,0.002,3047.0,3046.9,8.93072404]
[1764519933372,0.002,3047.0,3046.9,8.59872404]
[1764519933665,0.002,3047.0,3046.9,8.93072404]
[1764519935149,0.0006,3047.4,3047.0,1.34459411]
[1764519935367,0.4813,3047.7,3047.1,3.50280158]
[1764519935568,0.1984,3047.8,3047.1,3.50280158]
[1764519935772,0.1984,3047.8,3047.2,0.4613]
[1764519935952,0.1984,3047.8,3047.3,0.208]
[1764519937243,0.1984,3047.8,3047.4,6.5629717]
[1764519937481,0.4813,3047.7,3047.4,6.5629717]
[1764519945453,0.4813,3048.1,3047.6,0.4664]
[1764519947401,0.4813,3048.1,3047.8,3.28105518]
[1764519948087,0.4813,3048.1,3047.8,6.56211036]
[1764519948269,0.4813,3048.1,3047.8,3.28105518]
[1764519949486,0.72559411,3048.4,3047.8,3.28105518]
[1764519949785,0.88189546,3048.3,3047.8,3.28105518]
[1764519950681,0.4813,3048.2,3047.8,3.28105518]
[1764519951085,0.4813,3048.2,3047.8,6.56211036]
[1764519951313,0.4813,3048.2,3047.8,6.59492091]
[1764519954128,0.002,3048.7,3048.1,4.10170158]
[1764519954428,0.002,3048.7,3048.4,3.90270158]
[1764519954714,0.002,3048.7,3048.4,4.38750158]
[1764519954888,0.002,3048.7,3048.4,0.9839]
[1764519955494,0.002,3048.7,3048.4,0.4991]
[1764519955700,0.002,3048.7,3048.4,0.9839]
[1764519955920,0.002,3048.7,3048.5,3.28030178]
[1764519956121,0.002,3048.7,3048.6,0.208]
[1764519956696,0.002,3048.7,3048.6,0.7071]
[1764519957294,0.002,3048.7,3048.6,4.59550158]
[1764519957894,0.002,3048.7,3048.6,7.87569576]
[1764519958093,0.002,3048.7,3048.6,8.20769576]
[1764519959224,0.002,3048.7,3048.6,8.93328987]
[1764519961129,0.4936,3048.7,3048.6,3.28019418]
[1764519961308,0.4936,3048.7,3048.6,3.48819418]
[1764519963151,0.4936,3048.7,3048.6,3.28019418]
[1764519963354,0.4936,3048.7,3048.6,3.48819418]
[1764519966838,0.002,3048.7,3048.6,3.48819418]
[1764519967034,0.4936,3048.7,3048.6,3.48819418]
[1764519970544,0.7357,3048.7,3048.6,3.48819418]
[1764519971055,0.7357,3048.7,3048.1,0.208]
[1764519971224,0.4867,3048.6,3048.2,6.56124926]
[1764519971652,0.2468,3048.3,3048.2,3.28062463]
[1764519972156,0.7311,3048.3,3047.9,3.28092704]
[1764519972361,0.2444,3048.0,3047.9,3.48892704]
[1764519972728,0.7311,3048.0,3047.9,3.48892704]
[1764519972920,0.7311,3048.0,3047.8,3.48999307]
[1764519973121,0.9318,3047.9,3047.8,0.209]
[1764519973428,0.9318,3047.9,3047.8,0.001]
[1764519975728,1.42561283,3047.9,3047.8,0.001]
[1764519977840,0.9318,3047.9,3047.8,0.001]
[1764519979463,0.4451,3047.9,3047.8,0.001]
[1764519979664,0.9189,3047.9,3047.8,0.001]
[1764519979968,0.4738,3048.2,3047.8,0.001]
[1764519980260,0.208,3048.5,3047.8,0.001]
[1764519980261,0.4532,3047.9,3047.8,0.001]
[1764519980456,0.6423,3047.9,3047.8,0.001]
[1764519980661,0.9316,3047.9,3047.8,0.001]
[1764519981041,0.6423,3047.9,3047.8,0.001]
[1764519981880,0.9316,3047.9,3047.8,0.001]
[1764519982602,0.6423,3047.9,3047.8,0.001]
[1764519983000,0.9316,3047.9,3047.8,0.001]
[1764519983875,0.6423,3047.9,3047.8,0.001]
[1764519984189,0.9316,3047.9,3047.8,0.001]
[1764519989025,0.002,3048.7,3047.8,0.4934]
[1764519989188,0.4915,3048.4,3047.8,0.9925]
[1764519990794,0.002,3048.7,3047.8,0.9925]
[1764519991030,3.77169786,3048.6,3047.9,3.28094753]
[1764519991242,4.10737831,3048.6,3047.9,3.28094753]
[1764519991407,0.26,3048.0,3047.9,3.28094753]
[1764519991605,0.4891,3048.5,3047.9,6.56189506]
[1764519991944,0.4915,3048.4,3047.9,6.56189506]
[1764519992095,0.4915,3048.5,3047.9,7.06099506]
[1764519992305,0.72759411,3048.7,3047.9,7.06099506]
[1764519992306,0.4915,3048.4,3047.9,7.06099506]
[1764519992711,0.4915,3048.4,3047.9,6.56189506]
[1764519993636,0.4915,3048.4,3047.9,0.4991]
[1764519993838,0.4915,3048.4,3047.8,6.56311036]
[1764519994137,0.002,3048.7,3047.9,0.4991]
[1764519994442,0.4935,3048.7,3047.9,0.4991]
[1764519995052,0.72559411,3048.6,3047.8,6.56311036]
[1764519995639,0.4915,3048.5,3047.8,6.56311036]
[1764519995842,0.4915,3048.5,3047.8,6.59592091]
[1764519996043,0.4915,3048.5,3047.8,6.56311036]
[1764519999112,4.00769368,3048.7,3047.8,6.56311036]
[1764519999315,0.4935,3048.7,3047.9,0.4991]
[1764519999754,0.4935,3048.7,3048.0,6.56167978]
[1764519999952,0.97205774,3048.7,3048.0,6.56167978]
[1764520000461,0.4915,3048.6,3048.0,3.28083989]
[1764520000965,0.002,3048.7,3048.1,0.8968]
[1764520001136,0.002,3048.7,3048.5,0.4924]
[1764520001341,0.002,3048.7,3048.2,0.4991]
[1764520001661,0.002,3048.7,3048.6,0.4924]
[1764520002041,0.002,3048.7,3048.6,0.9915]
[1764520003866,0.002,3048.7,3048.6,4.27169418]
[1764520005371,0.002,3048.7,3048.6,3.77259418]
[1764520005952,0.002,3048.7,3048.6,4.27169418]
[1764520012775,0.002,3048.7,3048.6,5.03009023]
[1764520012976,0.002,3048.7,3048.6,5.36209023]
[1764520013442,0.002,3048.7,3048.6,5.76759423]
[1764520018876,0.002,3048.7,3048.6,5.73479229]
[1764520019082,0.002,3048.7,3048.6,5.76759423]
[1764520019577,0.002,3048.7,3048.6,5.73479229]
[1764520019776,0.002,3048.7,3048.6,5.23569229]
[1764520019982,0.002,3048.7,3048.6,5.37479229]
[1764520020276,0.002,3048.7,3048.6,5.70679229]
[1764520021178,0.002,3048.7,3048.6,5.73959423]
[1764520022179,0.002,3048.7,3048.6,4.93649423]
[1764520022382,0.002,3048.7,3048.6,5.37479229]
[1764520023081,0.002,3048.7,3048.6,5.40759423]
[1764520023280,0.002,3048.7,3048.6,5.73959423]
[1764520024888,0.002,3048.7,3048.6,4.03859023]
[1764520024889,0.1726,3048.7,3048.6,4.03859023]
[1764520025185,0.002,3048.7,3048.6,3.52099612]
[1764520025966,0.1609,3048.7,3048.6,3.52099612]
[1764520026170,0.002,3048.7,3048.6,4.01569612]
[1764520026578,0.002,3048.7,3048.6,4.48679612]
[1764520028075,0.002,3048.7,3048.6,3.52099612]
[1764520028284,0.002,3048.7,3048.6,3.98289418]
[1764520028888,0.158,3048.7,3048.6,3.28019418]
[1764520029089,0.6261,3048.7,3048.6,3.48819418]
[1764520029590,0.6261,3048.7,3048.6,3.52099612]
[1764520030689,0.6261,3048.7,3048.5,0.001]
[1764520030990,0.4756,3048.6,3048.5,0.001]
[1764520032972,0.0047,3048.6,3048.5,0.001]
[1764520033469,0.4756,3048.6,3048.5,0.001]
[1764520033868,0.4709,3048.8,3048.5,0.001]
[1764520034068,0.1514,3048.9,3048.5,0.24180301]
[1764520034363,0.6223,3048.9,3048.5,0.24180301]
[1764520034806,0.4709,3048.8,3048.5,0.24180301]
[1764520035593,0.4709,3048.8,3048.6,3.28019418]
[1764520040214,0.4709,3048.8,3048.6,3.31299612]
[1764520041093,0.1514,3048.9,3048.6,6.5931903]
[1764520041290,0.6223,3048.9,3048.6,6.5931903]
[1764520042715,0.002,3049.1,3048.8,0.4727]
[1764520043285,0.4679,3049.1,3048.8,0.4727]
[1764520043619,0.4679,3049.1,3048.6,6.56038836]
[1764520043826,0.002,3049.1,3049.0,3.87472092]
[1764520044112,0.002,3049.1,3049.0,0.6807]
[1764520044315,0.002,3049.1,3049.0,1.1505]
[1764520044680,0.002,3049.1,3049.0,4.43026385]
[1764520045520,0.002,3049.1,3049.0,3.48776385]
[1764520045819,0.002,3049.1,3049.0,3.96046385]
[1764520047625,0.468,3049.1,3049.0,3.48776385]
[1764520049019,0.418,3049.1,3049.0,3.48776385]
[1764520049219,0.418,3049.1,3049.0,3.27976385]
[1764520049384,0.418,3049.1,3049.0,3.48776385]
[1764520049592,0.368,3049.1,3049.0,3.48776385]
[1764520050911,0.4659,3049.8,3049.0,10.98979155]
[1764520051114,0.1922,3049.9,3049.0,10.98979155]
[1764520051418,0.002,3049.1,3049.0,4.43026385]
[1764520051588,0.002,3049.1,3049.0,4.46306148]
[1764520051795,0.002,3049.1,3049.0,4.43026385]
[1764520052793,0.002,3049.1,3049.0,4.46306148]
[1764520063027,0.002,3049.1,3049.0,3.99326148]
[1764520063325,0.002,3049.1,3049.0,7.8650824]
[1764520063535,0.002,3049.1,3049.0,7.83228477]
[1764520064325,0.002,3049.1,3049.0,3.96046385]
[1764520064530,0.002,3049.1,3049.0,3.99326148]
[1764520064897,0.002,3049.1,3049.0,4.46306148]
[1764520065101,0.002,3049.1,3049.0,7.8650824]
[1764520065320,0.002,3049.1,3049.0,4.62246385]
[1764520065521,0.002,3049.1,3049.0,3.94466385]
[1764520065733,0.002,3049.1,3049.0,4.15266385]
[1764520066033,0.002,3049.1,3049.0,4.62246385]
[1764520066731,0.002,3049.1,3049.0,4.65526148]
[1764520067433,0.002,3049.1,3049.0,8.0572824]
[1764520067597,0.002,3049.1,3049.0,8.02448477]
[1764520068919,0.002,3049.1,3049.0,8.75007888]
[1764520069929,0.002,3049.1,3049.0,8.75107888]
[1764520072936,0.002,3049.1,3049.0,9.48858288]
[1764520074439,0.002,3049.1,3049.0,8.87507888]
[1764520074736,0.002,3049.1,3049.0,9.48858288]
[1764520077538,0.002,3049.1,3049.0,9.15658288]
[1764520077848,0.002,3049.1,3049.0,9.48858288]
[1764520078819,0.002,3049.1,3049.0,13.37858288]
[1764520081623,0.002,3049.1,3049.0,13.05448288]
[1764520082026,0.002,3049.1,3049.0,16.7885038]
[1764520082339,0.002,3049.1,3049.0,20.93796615]
[1764520082715,0.002,3049.1,3049.0,13.38648288]
[1764520083221,0.002,3049.1,3049.0,9.98446196]
[1764520083424,0.002,3049.1,3049.0,13.38648288]
[1764520083825,0.002,3049.1,3049.0,9.49648288]
[1764520089852,0.002,3049.1,3049.0,9.16448288]
[1764520090463,0.002,3049.1,3049.0,9.49648288]
[1764520096349,0.002,3049.1,3049.0,9.49356641]
[1764520099561,0.002,3049.1,3049.0,13.38356641]
[1764520101266,0.002,3049.1,3049.0,12.90586641]
[1764520101968,0.5474,3049.1,3049.0,3.68096385]
[1764520102180,0.5474,3049.1,3049.0,4.40655796]
[1764520102935,0.0942,3049.1,3049.0,4.40655796]
[1764520103277,0.5474,3049.1,3049.0,3.68096385]
[1764520103447,0.5474,3049.1,3049.0,4.19855796]
[1764520103772,0.5474,3049.1,3049.0,0.1932]
[1764520104059,0.5474,3049.1,3049.0,3.28076385]
[1764520104262,0.5474,3049.1,3049.0,0.001]
[1764520104643,0.5474,3049.1,3049.0,3.28076385]
[1764520104961,0.5474,3049.1,3049.0,0.001]
[1764520109768,0.88308045,3049.1,3049.0,0.001]
[1764520109966,1.29933876,3049.1,3049.0,0.001]
[1764520110271,0.88308045,3049.1,3049.0,0.001]
[1764520110671,4.88833085,3049.1,3049.0,0.001]
[1764520110970,0.33568045,3048.9,3048.6,0.001]
[1764520111148,0.198,3048.7,3048.6,0.001]
[1764520111560,0.6746,3048.7,3048.6,0.001]
[1764520112185,1.40996178,3048.7,3048.6,0.001]
[1764520112367,1.74564223,3048.7,3048.6,0.001]
[1764520112770,1.40996178,3048.7,3048.6,0.001]
[1764520112994,0.6746,3048.7,3048.6,0.001]
[1764520128006,0.198,3048.7,3048.6,0.001]
[1764520128195,0.6746,3048.7,3048.6,0.001]
[1764520132902,1.01028045,3048.7,3048.6,0.001]
[1764520133101,1.77921329,3048.7,3048.6,0.001]
[1764520134211,1.44353284,3048.7,3048.6,0.001]
[1764520134414,1.77921329,3048.7,3048.6,0.001]
[1764520134917,1.44353284,3048.7,3048.6,0.001]
[1764520135084,0.6746,3048.7,3048.6,0.001]
[1764520141024,3.95468659,3048.7,3048.6,0.001]
[1764520141196,4.6802807,3048.7,3048.6,0.001]
[1764520141397,5.01596115,3048.7,3048.6,0.001]
[1764520144518,5.42146515,3048.7,3048.6,0.001]
[1764520144831,6.95950906,3048.7,3048.6,0.001]
[1764520145404,7.05950906,3048.7,3048.6,0.001]
[1764520146440,6.95950906,3048.7,3048.6,0.001]
[1764520146615,7.05950906,3048.7,3048.6,0.001]
[1764520147122,6.95950906,3048.7,3048.6,0.001]
[1764520147726,7.05950906,3048.7,3048.6,0.001]
[1764520147923,6.62382861,3048.7,3048.6,0.001]
[1764520148111,7.05950906,3048.7,3048.6,0.001]
[1764520148720,6.95950906,3048.7,3048.6,0.001]